bitfinex/quotes_SOLUSD_20220207
["timestamp","ask_amount","ask_price","bid_price","bid_amount"]
[1644192626219,25.6101,114.79,114.69,52.31498667]
[1644192626621,25.6101,114.79,114.69,60.41117959]
[1644192626815,12.53,114.79,114.69,60.41117959]
[1644192627021,13.0757,114.81,114.69,60.41117959]
[1644192628519,13.0757,114.81,114.69,112.77117959]
[1644192628722,25.6034,114.83,114.7,64.89]
[1644192628920,13.0734,114.83,114.73,13.0734]
[1644192629122,13.0734,114.83,114.74,42.42538502]
[1644192630219,15.26023917,114.83,114.74,42.42538502]
[1644192631223,13.0734,114.83,114.74,42.42538502]
[1644192631922,41.25775015,114.88,114.75,2.09619292]
[1644192632120,13.76515015,114.88,114.76,45.3727897]
[1644192632322,12.53,114.88,114.76,97.9827897]
[1644192632621,12.53,114.88,114.76,118.89838262]
[1644192632820,12.53,114.88,114.76,119.14838262]
[1644192633020,1.23515015,114.89,114.76,119.14838262]
[1644192633221,1.23515015,114.9,114.76,178.23478262]
[1644192633623,59.58699625,114.9,114.76,125.87478262]
[1644192633923,25.5967,114.89,114.76,119.87478262]
[1644192634323,27.78353917,114.89,114.76,119.87478262]
[1644192634723,51.60603917,114.89,114.76,119.87478262]
[1644192634923,51.60603917,114.89,114.76,117.7785897]
[1644192635824,51.60603917,114.89,114.76,117.5285897]
[1644192636024,23.0579,114.88,114.76,104.4591897]
[1644192636224,13.0722,114.85,114.76,91.9291897]
[1644192636431,13.0722,114.85,114.76,45.3727897]
[1644192637427,2.18683917,114.84,114.72,26.82944506]
[1644192637627,13.0764,114.81,114.7,1.34400474]
[1644192637826,25.6064,114.81,114.7,0.11835968]
[1644192638027,27.79323917,114.81,114.7,0.11835968]
[1644192638428,27.79323917,114.81,114.7,35.37848471]
[1644192639427,25.6064,114.81,114.7,35.37848471]
[1644192640027,25.6064,114.81,114.7,37.04657793]
[1644192640229,25.6064,114.81,114.7,35.82093287]
[1644192640430,25.6064,114.81,114.7,37.04657793]
[1644192640628,25.6064,114.81,114.7,35.82093287]
[1644192641029,25.6064,114.81,114.7,48.89763287]
[1644192641228,25.6064,114.81,114.7,50.12327793]
[1644192641430,25.6064,114.81,114.7,50.37327793]
[1644192641630,25.6064,114.81,114.7,50.12327793]
[1644192641828,25.6064,114.81,114.7,48.89763287]
[1644192642028,25.6064,114.81,114.7,50.12327793]
[1644192642231,25.6064,114.81,114.7,48.89763287]
[1644192642430,25.6064,114.81,114.7,35.82093287]
[1644192642829,25.6064,114.81,114.7,37.04657793]
[1644192644130,25.6064,114.81,114.7,50.12327793]
[1644192646628,25.6064,114.81,114.7,37.04657793]
[1644192646831,27.79323917,114.81,114.7,1.7864529]
[1644192647031,27.79323917,114.81,114.7,0.56080784]
[1644192647730,13.0811,114.77,114.7,0.56080784]
[1644192648533,34.0,114.76,114.7,0.23671936]
[1644192648732,25.6146,114.75,114.7,0.23671936]
[1644192648931,27.80143917,114.75,114.7,0.23671936]
[1644192649336,0.32371737,114.72,114.63,1.22564506]
[1644192649532,12.53,114.71,114.61,0.08956394]
[1644192649734,13.0924,114.7,114.61,0.08956394]
[1644192649934,12.53,114.69,114.61,0.08956394]
[1644192650534,33.9980422,114.69,114.61,0.08956394]
[1644192650734,29.6370422,114.69,114.61,0.08956394]
[1644192650934,13.0947,114.67,114.61,0.08956394]
[1644192651138,12.53,114.66,114.61,0.08956394]
[1644192652039,13.0968,114.65,114.61,0.08956394]
[1644192652240,12.53,114.64,114.61,0.08956394]
[1644192652440,34.0,114.63,114.57,0.28689492]
[1644192652641,12.53,114.62,114.57,0.28689492]
[1644192652846,34.0,114.63,114.57,0.28689492]
[1644192653041,13.1002,114.61,114.57,0.28689492]
[1644192654240,12.53,114.62,114.57,0.28689492]
[1644192656646,25.627,114.62,114.57,0.28689492]
[1644192657053,116.3761,114.65,114.57,0.28689492]
[1644192657250,12.53,114.64,114.57,0.28689492]
[1644192657452,12.53,114.64,114.57,2.38308784]
[1644192657651,12.53,114.66,114.58,47.57987244]
[1644192657852,12.53,114.68,114.58,47.57987244]
[1644192658052,12.53,114.68,114.58,49.67606536]
[1644192658653,25.6203,114.68,114.58,49.67606536]
[1644192659352,12.53,114.68,114.58,49.67606536]
[1644192659968,13.0881,114.7,114.58,49.67606536]
[1644192660169,25.6181,114.7,114.58,49.67606536]
[1644192660370,27.80493917,114.7,114.58,47.57987244]
[1644192661772,25.6181,114.7,114.58,47.57987244]
[1644192662372,27.80493917,114.7,114.58,47.57987244]
[1644192662573,42.8973186,114.7,114.58,47.57987244]
[1644192662774,57.04600774,114.7,114.58,47.57987244]
[1644192664574,57.04600774,114.7,114.57,0.28689492]
[1644192664777,28.3456,114.69,114.57,0.28689492]
[1644192665075,13.0939,114.66,114.57,0.28689492]
[1644192665276,12.53,114.65,114.57,0.28689492]
[1644192666282,13.0943,114.64,114.57,0.28689492]
[1644192666678,73.2736,114.64,114.57,0.28689492]
[1644192666879,75.46043917,114.64,114.57,0.28689492]
[1644192667281,13.1054,114.61,114.54,0.28694986]
[1644192667479,169.14,114.6,114.54,0.28694986]
[1644192667680,173.504,114.59,114.49,4.361]
[1644192667879,187.64140081,114.59,114.48,0.43788704]
[1644192668079,47.6454,114.58,114.48,0.43788704]
[1644192668277,12.53,114.57,114.48,0.43788704]
[1644192668679,13.107,114.55,114.48,0.43788704]
[1644192668980,12.53,114.54,114.46,0.03788704]
[1644192669181,12.53,114.53,114.46,0.03788704]
[1644192670182,13.1088,114.52,114.46,0.03788704]
[1644192670383,12.53,114.51,114.46,0.03788704]
[1644192671284,4.367,114.56,114.46,0.03788704]
[1644192671484,10.5,114.55,114.46,0.03788704]
[1644192671683,43.7041,114.52,114.46,0.03788704]
[1644192671882,54.2041,114.52,114.46,0.03788704]
[1644192674084,54.2041,114.52,114.45,0.76334676]
[1644192677088,54.2041,114.52,114.46,42.98087813]
[1644192677287,54.2041,114.52,114.45,0.76334676]
[1644192678388,58.5711,114.52,114.45,0.76334676]
[1644192679390,4.367,114.51,114.45,0.76334676]
[1644192679590,23.6167,114.5,114.45,0.76334676]
[1644192680590,46.2312,114.5,114.45,0.76334676]
[1644192681592,13.1181,114.45,114.34,2.92922334]
[1644192681792,13.1181,114.45,114.35,37.23016445]
[1644192681793,10.5,114.44,114.35,37.23016445]
[1644192683993,13.1196,114.43,114.35,37.23016445]
[1644192684193,10.5,114.42,114.35,37.23016445]
[1644192684393,10.5,114.42,114.34,1.74146532]
[1644192685295,13.1224,114.4,114.34,45.84874353]
[1644192685596,23.6224,114.4,114.34,1.70357828]
[1644192686697,23.6224,114.4,114.35,36.03183719]
[1644192687496,23.6224,114.4,114.34,1.70357828]
[1644192688698,25.80923917,114.4,114.34,1.70357828]
[1644192691798,25.80923917,114.4,114.34,43.93924342]
[1644192691997,25.80923917,114.4,114.34,1.70357828]
[1644192693219,4.371,114.39,114.34,1.70357828]
[1644192693399,57.6281,114.38,114.27,0.03788704]
[1644192693601,108.42743917,114.38,114.25,0.36678368]
[1644192693798,10.92664085,114.37,114.25,0.36678368]
[1644192693998,10.5,114.36,114.25,0.36678368]
[1644192694196,12.68683917,114.36,114.25,0.36678368]
[1644192694399,2.18683917,114.35,114.25,0.36678368]
[1644192694597,10.5,114.34,114.25,0.36678368]
[1644192695598,13.1332,114.31,114.25,0.36678368]
[1644192695799,23.6332,114.31,114.25,0.36678368]
[1644192696798,23.6313,114.33,114.25,0.36678368]
[1644192701404,13.1366,114.3,114.25,0.36678368]
[1644192701602,10.5,114.29,114.25,0.36678368]
[1644192701803,21.42664085,114.29,114.25,0.36678368]
[1644192702005,2.18683917,114.28,114.25,0.36678368]
[1644192702203,10.5,114.27,114.25,0.36678368]
[1644192702404,34.0,114.26,114.22,0.83337964]
[1644192702605,34.0,114.26,114.22,0.7954926]
[1644192702807,2.18683917,114.25,114.22,0.7954926]
[1644192703207,10.5,114.26,114.22,0.7954926]
[1644192703407,2.18683917,114.25,114.22,0.7954926]
[1644192703810,13.1407,114.25,114.22,0.7954926]
[1644192704007,15.32753917,114.25,114.22,0.7954926]
[1644192704209,13.1407,114.25,114.22,0.7954926]
[1644192704607,15.32753917,114.25,114.22,0.7954926]
[1644192705512,10.5,114.24,114.22,0.7954926]
[1644192705709,23.6422,114.24,114.22,0.7954926]
[1644192705912,25.82903917,114.24,114.22,0.7954926]
[1644192706912,25.82903917,114.24,114.16,0.43781252]
[1644192706913,0.55,114.22,114.16,0.43781252]
[1644192707113,0.55,114.22,114.11,0.5390422]
[1644192707114,23.648,114.21,114.11,0.50115516]
[1644192707313,5.0,114.2,114.11,0.50115516]
[1644192707513,10.82315283,114.19,114.11,0.50115516]
[1644192707713,43.8394,114.18,114.11,0.50115516]
[1644192707913,10.5,114.17,114.12,45.73588586]
[1644192708118,23.6519,114.17,114.11,0.50115516]
[1644192709031,10.5,114.17,114.12,42.21469735]
[1644192709330,10.5,114.19,114.13,0.03788704]
[1644192709531,10.5,114.23,114.13,0.03788704]
[1644192710332,23.6428,114.23,114.13,0.03788704]
[1644192711234,25.82963917,114.23,114.13,0.03788704]
[1644192711732,23.6428,114.23,114.13,0.03788704]
[1644192712135,40.80261701,114.23,114.13,0.03788704]
[1644192712535,55.4061617,114.23,114.13,0.03788704]
[1644192712733,13.97444062,114.26,114.14,35.0]
[1644192712946,47.64180629,114.3,114.15,0.03788704]
[1644192713136,514.28715013,114.33,114.15,92.15125584]
[1644192713336,514.28715013,114.33,114.16,194.09788704]
[1644192713540,39.20360654,114.34,114.2,52.36]
[1644192713733,1.23515015,114.39,114.22,183.56]
[1644192713933,3.092142,114.42,114.25,131.2]
[1644192714133,3.092142,114.42,114.26,131.23788704]
[1644192714334,3.092142,114.42,114.28,4.42]
[1644192714540,3.092142,114.42,114.29,67.232]
[1644192714738,3.092142,114.42,114.31,52.36]
[1644192714937,6.843653,114.53,114.33,33.0]
[1644192714938,1.23515015,114.51,114.33,33.0]
[1644192715135,1.23515015,114.5,114.34,141.7]
[1644192715338,1.23515015,114.5,114.36,131.2]
[1644192715538,13.1123,114.5,114.37,10.5]
[1644192715736,4.32729215,114.51,114.37,10.75]
[1644192716036,40.05914445,114.5,114.38,1.89124629]
[1644192716237,40.05914445,114.5,114.39,10.5]
[1644192716435,40.05914445,114.5,114.4,10.5]
[1644192716735,2.18683917,114.49,114.36,10.5]
[1644192716936,7.79098932,114.49,114.35,10.5]
[1644192717135,7.79098932,114.49,114.33,10.5]
[1644192717437,42.07265476,114.46,114.33,0.03788704]
[1644192717635,52.57265476,114.46,114.32,0.03788704]
[1644192717835,13.1221,114.41,114.31,0.03788704]
[1644192718234,15.30893917,114.41,114.31,10.53788704]
[1644192718436,2.18683917,114.41,114.32,0.03788704]
[1644192718636,44.23331745,114.4,114.32,0.03788704]
[1644192719034,2.18683917,114.39,114.32,0.03788704]
[1644192719235,48.82815795,114.38,114.31,0.03788704]
[1644192719435,48.82815795,114.38,114.31,10.5]
[1644192719638,2.18683917,114.42,114.32,75.26938188]
[1644192719938,10.5,114.49,114.33,10.53788704]
[1644192719939,1.23515015,114.49,114.33,10.53788704]
[1644192720142,15.30263917,114.47,114.33,10.53788704]
[1644192720335,4.37,114.46,114.33,10.5]
[1644192720537,43.7327,114.46,114.33,10.5]
[1644192720739,47.95371339,114.45,114.33,10.5]
[1644192720939,47.95371339,114.45,114.33,10.53788704]
[1644192721137,2.18683917,114.44,114.33,10.5]
[1644192721338,15.30643917,114.44,114.33,10.5]
[1644192721737,2.18683917,114.43,114.33,0.03788704]
[1644192721936,45.16076219,114.42,114.32,0.03788704]
[1644192722335,45.16076219,114.42,114.31,0.03788704]
[1644192722336,47.34760136,114.42,114.31,0.03788704]
[1644192722938,60.46940136,114.42,114.31,0.03788704]
[1644192723140,74.91981045,114.42,114.31,0.03788704]
[1644192723342,14.871,114.41,114.24,10.53788704]
[1644192723545,43.18799068,114.4,114.25,0.03788704]
[1644192723746,47.31153199,114.38,114.24,0.03788704]
[1644192724245,2.18683917,114.37,114.24,0.03788704]
[1644192724444,13.128,114.36,114.24,0.03788704]
[1644192724644,45.96814422,114.35,114.24,47.67397089]
[1644192724846,58.65498339,114.35,114.25,0.03788704]
[1644192725045,4.374,114.34,114.25,0.03788704]
[1644192725246,10.5,114.33,114.25,47.67397089]
[1644192725446,13.1345,114.31,114.26,0.03788704]
[1644192725646,2.18683917,114.33,114.26,0.03788704]
[1644192725846,35.50764602,114.31,114.26,47.67397089]
[1644192726048,35.50764602,114.31,114.27,0.03788704]
[1644192726647,35.50764602,114.31,114.27,47.67397089]
[1644192726847,35.50764602,114.31,114.28,0.03788704]
[1644192727048,2.18683917,114.34,114.28,0.03788704]
[1644192727248,2.18683917,114.34,114.29,6.06439994]
[1644192727649,2.18683917,114.34,114.29,53.70048379]
[1644192727848,2.18683917,114.34,114.3,0.03788704]
[1644192728049,13.133,114.32,114.3,0.03788704]
[1644192728449,13.133,114.32,114.3,47.67397089]
[1644192728651,48.50949039,114.32,114.3,47.63608385]
[1644192729249,35.37649039,114.32,114.3,47.63608385]
[1644192729650,2.18683917,114.37,114.3,47.67397089]
[1644192729851,20.41251855,114.38,114.31,0.03788704]
[1644192730054,2.18683917,114.39,114.31,0.03788704]
[1644192730254,38.64202019,114.42,114.31,47.67397089]
[1644192730455,38.64202019,114.42,114.32,0.03788704]
[1644192730659,36.45256814,114.41,114.32,0.03788704]
[1644192731055,36.45256814,114.41,114.32,47.67397089]
[1644192731269,53.76942002,114.41,114.33,0.03788704]
[1644192731457,55.95625919,114.41,114.33,0.03788704]
[1644192731655,38.63940731,114.41,114.33,47.67397089]
[1644192731856,36.45256814,114.41,114.33,47.67397089]
[1644192732060,36.45256814,114.41,114.33,69.49251145]
[1644192732455,36.45256814,114.41,114.33,69.53039849]
[1644192732656,36.45256814,114.41,114.33,69.49251145]
[1644192732955,36.45256814,114.41,114.33,69.53039849]
[1644192733155,36.45256814,114.41,114.33,69.49251145]
[1644192733355,30.43605188,114.44,114.33,69.78039849]
[1644192733556,44.96665015,114.47,114.33,80.24251145]
[1644192733757,17.31685188,114.47,114.33,80.28039849]
[1644192733954,17.31685188,114.47,114.33,80.24251145]
[1644192734156,17.31685188,114.47,114.33,132.60251145]
[1644192734356,44.98340697,114.46,114.34,56.73]
[1644192734558,44.98340697,114.46,114.35,18.3276045]
[1644192734956,44.98340697,114.46,114.35,10.5]
[1644192735157,64.48709802,114.46,114.35,58.13608385]
[1644192735957,60.28704614,114.46,114.36,25.45695198]
[1644192736158,44.98340697,114.46,114.36,25.45695198]
[1644192736362,44.98340697,114.46,114.36,73.34303583]
[1644192736559,116.87,114.5,114.36,73.34303583]
[1644192736759,112.5,114.5,114.36,136.20303583]
[1644192736963,112.5,114.5,114.36,138.35726377]
[1644192737160,1.23515015,114.53,114.36,144.35726377]
[1644192737567,40.57756673,114.52,114.36,144.35726377]
[1644192738162,40.57756673,114.52,114.38,4.22708012]
[1644192738461,40.57756673,114.52,114.39,10.5]
[1644192738462,42.7644059,114.52,114.39,10.5]
[1644192738662,42.7644059,114.52,114.4,25.45695198]
[1644192738865,42.7644059,114.52,114.4,36.20695198]
[1644192739062,42.7644059,114.52,114.4,35.95695198]
[1644192739263,55.8753059,114.52,114.4,47.63608385]
[1644192739463,61.47845605,114.52,114.4,47.63608385]
[1644192739669,9.87347929,114.51,114.4,47.63608385]
[1644192739867,5.60315015,114.5,114.4,47.63608385]
[1644192740067,12.06031846,114.5,114.4,47.63608385]
[1644192740268,47.33581501,114.49,114.4,75.96598497]
[1644192740870,47.33581501,114.49,114.4,47.63608385]
[1644192741272,49.52265418,114.49,114.4,47.63608385]
[1644192741670,62.63705418,114.49,114.4,47.63608385]
[1644192741870,63.87220433,114.49,114.4,47.63608385]
[1644192742291,50.75780433,114.49,114.4,47.63608385]
[1644192742891,47.33581501,114.49,114.4,47.63608385]
[1644192743092,1.23515015,114.51,114.4,47.63608385]
[1644192743394,2.471653,114.57,114.42,52.36]
[1644192743593,2.471653,114.6,114.44,52.36]
[1644192743793,488.94051575,114.63,114.45,10.5]
[1644192744094,42.13796245,114.62,114.46,21.42559558]
[1644192744293,42.13796245,114.62,114.48,7.02328637]
[1644192744495,42.13796245,114.62,114.5,21.42559558]
[1644192744692,42.13796245,114.62,114.52,7.02328637]
[1644192744893,42.13796245,114.62,114.54,21.42559558]
[1644192745093,42.13796245,114.62,114.49,49.79031179]
[1644192745094,4.85962277,114.61,114.49,49.79031179]
[1644192745295,2.38796977,114.61,114.53,47.63608385]
[1644192745493,2.18683917,114.61,114.53,47.63608385]
[1644192745694,42.13796245,114.62,114.53,47.63608385]
[1644192746092,37.73577503,114.59,114.53,47.63608385]
[1644192746796,2.18683917,114.58,114.53,47.63608385]
[1644192746992,37.73577503,114.59,114.53,47.63608385]
[1644192746993,50.83857503,114.59,114.53,47.63608385]
[1644192747193,37.73577503,114.59,114.53,47.63608385]
[1644192747693,41.870853,114.67,114.53,47.88608385]
[1644192748094,39.3992,114.67,114.53,47.88608385]
[1644192748392,44.05769217,114.67,114.53,47.88608385]
[1644192748796,39.18975491,114.66,114.54,5.86448898]
[1644192748992,37.49010773,114.64,114.54,5.86448898]
[1644192749193,37.49010773,114.64,114.54,47.63608385]
[1644192749794,152.1769469,114.64,114.54,47.63608385]
[1644192749993,175.7738469,114.64,114.54,47.63608385]
[1644192750197,42.52049489,114.62,114.54,47.63608385]
[1644192750597,55.20733406,114.62,114.54,30.1185364]
[1644192751198,13.1015,114.61,114.54,30.1185364]
[1644192751398,34.45154067,114.6,114.54,30.1185364]
[1644192752199,49.73957984,114.6,114.54,30.1185364]
[1644192752398,64.60357984,114.6,114.54,30.1185364]
[1644192752597,60.23957984,114.6,114.54,30.1185364]
[1644192753999,58.05274067,114.6,114.54,30.1185364]
[1644192754201,60.23957984,114.6,114.54,30.1185364]
[1644192755003,39.99799437,114.58,114.54,30.1185364]
[1644192755201,53.10419437,114.58,114.54,30.1185364]
[1644192756601,52.60419437,114.58,114.54,30.1185364]
[1644192756800,52.60419437,114.58,114.42,74.5188]
[1644192756801,13.1077,114.54,114.42,74.5188]
[1644192756999,13.1077,114.54,114.43,6.0]
[1644192757204,13.1077,114.54,114.42,80.5188]
[1644192757401,13.1077,114.54,114.42,6.0]
[1644192757601,44.97547267,114.53,114.43,40.41557324]
[1644192758605,58.08467267,114.53,114.43,40.41557324]
[1644192759204,44.97547267,114.53,114.43,40.66557324]
[1644192759606,44.97547267,114.53,114.43,51.16557324]
[1644192761206,44.97547267,114.53,114.43,50.91557324]
[1644192762506,44.97547267,114.53,114.43,51.16557324]
[1644192763105,44.97547267,114.53,114.43,50.91557324]
[1644192763306,44.97547267,114.53,114.43,51.16557324]
[1644192763505,44.97547267,114.53,114.43,50.91557324]
[1644192765806,44.97547267,114.53,114.43,40.41557324]
[1644192766106,24.5133,114.57,114.44,10.5]
[1644192766308,24.5133,114.57,114.44,10.75]
[1644192766706,24.5133,114.57,114.44,71.26422794]
[1644192767006,46.12845842,114.56,114.45,18.65184511]
[1644192767207,46.12845842,114.56,114.47,40.41557324]
[1644192767506,46.12845842,114.56,114.47,50.91557324]
[1644192767708,46.12845842,114.56,114.47,51.16557324]
[1644192769507,2.471653,114.6,114.47,51.16557324]
[1644192769710,15.571953,114.6,114.47,51.16557324]
[1644192770507,37.5510954,114.59,114.47,51.16557324]
[1644192771309,40.0227484,114.59,114.47,51.16557324]
[1644192772312,53.1241484,114.59,114.47,51.16557324]
[1644192772512,55.31098757,114.59,114.44,6.0]
[1644192772711,2.471653,114.57,114.44,10.5]
[1644192773114,4.65849217,114.56,114.44,6.0]
[1644192773312,4.62868159,114.55,114.44,6.0]
[1644192773515,41.50025063,114.54,114.45,39.5768059]
[1644192773714,56.7946898,114.54,114.42,4.366]
[1644192773913,74.1333428,114.54,114.42,4.366]
[1644192774116,6.8159944,114.53,114.42,4.366]
[1644192774313,4.65849217,114.53,114.42,4.366]
[1644192774514,2.18683917,114.52,114.42,4.366]
[1644192774715,36.84138638,114.51,114.41,44.96728996]
[1644192774914,13.1116,114.5,114.41,44.96728996]
[1644192775213,48.1058808,114.49,114.41,44.96728996]
[1644192776115,48.1058808,114.49,114.41,45.21728996]
[1644192776717,48.1058808,114.49,114.41,44.96728996]
[1644192777417,48.1058808,114.49,114.4,0.090778]
[1644192777819,61.2182808,114.49,114.4,0.090778]
[1644192778719,63.40511997,114.49,114.4,0.090778]
[1644192780320,67.77311997,114.49,114.4,0.090778]
[1644192780520,80.74477297,114.49,114.4,0.090778]
[1644192780722,95.28042419,114.49,114.4,0.090778]
[1644192780920,142.71872419,114.49,114.4,0.090778]
[1644192781524,45.73153518,114.47,114.4,0.090778]
[1644192781721,39.64641766,114.45,114.4,0.090778]
[1644192782120,2.18683917,114.44,114.4,0.090778]
[1644192782523,48.62172964,114.43,114.4,0.090778]
[1644192782721,61.74102964,114.43,114.4,0.090778]
[1644192784021,13.1171,114.45,114.4,0.090778]
[1644192785023,42.48020171,114.48,114.4,0.090778]
[1644192786724,42.48020171,114.48,114.4,36.12110814]
[1644192786926,42.48020171,114.48,114.4,0.090778]
[1644192787324,2.18683917,114.47,114.4,0.090778]
[1644192787526,0.31100245,114.46,114.4,0.090778]
[1644192787824,36.0,114.44,114.36,4.369]
[1644192788024,42.21516973,114.42,114.36,4.369]
[1644192788226,52.71516973,114.42,114.3,0.03788704]
[1644192788527,15.31083917,114.41,114.27,0.03788704]
[1644192788723,15.31083917,114.41,114.25,0.03788704]
[1644192788923,13.124,114.41,114.25,10.53788704]
[1644192789224,43.55303396,114.4,114.26,100.09297622]
[1644192789423,43.55303396,114.4,114.27,0.03788704]
[1644192789623,43.55303396,114.4,114.27,62.89788704]
[1644192789825,43.55303396,114.4,114.28,11.41021621]
[1644192790025,43.55303396,114.4,114.29,0.03788704]
[1644192790526,56.67513396,114.4,114.29,0.03788704]
[1644192790725,43.55303396,114.4,114.29,0.03788704]
[1644192791129,24.3787,114.43,114.29,0.03788704]
[1644192791326,10.5,114.44,114.29,0.03788704]
[1644192791527,2.471653,114.48,114.3,10.5]
[1644192791725,56.0765,114.47,114.31,0.03788704]
[1644192791931,13.1181,114.44,114.31,0.03788704]
[1644192792126,45.5765,114.47,114.31,105.66249459]
[1644192792325,45.5765,114.47,114.32,0.03788704]
[1644192792525,45.5765,114.47,114.33,10.5]
[1644192792727,45.5765,114.47,114.33,63.14788704]
[1644192792929,13.1137,114.48,114.33,63.11]
[1644192793131,47.01658485,114.48,114.34,16.3028108]
[1644192793329,47.01658485,114.48,114.35,10.5]
[1644192793527,47.01658485,114.48,114.36,38.73188896]
[1644192793929,62.31642402,114.48,114.36,38.73188896]
[1644192794127,81.22107524,114.48,114.33,6.0]
[1644192794328,76.85207524,114.48,114.33,0.28788704]
[1644192794731,87.35207524,114.48,114.33,0.28788704]
[1644192795233,91.72207524,114.48,114.33,44.68360865]
[1644192795437,100.57817636,114.48,114.33,44.68360865]
[1644192795635,13.1219,114.43,114.33,0.03788704]
[1644192795839,13.1219,114.43,114.3,0.03788704]
[1644192796033,39.03584029,114.43,114.29,0.03788704]
[1644192796237,47.3916,114.42,114.28,6.0]
[1644192796635,47.3916,114.42,114.27,0.03788704]
[1644192796636,49.1742757,114.41,114.29,38.87793526]
[1644192796935,2.18683917,114.4,114.3,0.03788704]
[1644192797136,39.30526022,114.39,114.3,0.03788704]
[1644192797938,54.61599939,114.39,114.27,0.03788704]
[1644192798759,73.97210051,114.39,114.27,0.03788704]
[1644192798955,14.53565122,114.38,114.26,0.03788704]
[1644192799155,13.1305,114.34,114.23,0.03788704]
[1644192799355,13.1305,114.34,114.22,4.372]
[1644192799959,35.97578106,114.33,114.23,41.29217149]
[1644192800156,35.97578106,114.33,114.24,0.03788704]
[1644192800356,58.33400267,114.31,114.24,0.03788704]
[1644192801057,4.375,114.35,114.24,0.03788704]
[1644192801258,13.1283,114.35,114.24,0.03788704]
[1644192801860,34.76686863,114.35,114.24,0.03788704]
[1644192802060,14.874,114.39,114.24,0.03788704]
[1644192802357,13.1239,114.39,114.25,10.5]
[1644192802559,13.1239,114.39,114.26,0.03788704]
[1644192803158,47.04642186,114.38,114.26,70.1731339]
[1644192803357,47.04642186,114.38,114.27,0.03788704]
[1644192804565,16.72249039,114.37,114.24,0.03788704]
[1644192804757,16.72249039,114.37,114.2,0.03788704]
[1644192804758,21.09649039,114.37,114.2,0.03788704]
[1644192804958,12.68683917,114.36,114.2,0.03788704]
[1644192805158,48.3137,114.35,114.2,0.03788704]
[1644192805358,38.98304575,114.34,114.21,36.37965675]
[1644192805661,38.98304575,114.34,114.22,0.03788704]
[1644192806160,52.11384575,114.34,114.22,0.03788704]
[1644192807361,38.98304575,114.34,114.22,0.03788704]
[1644192808865,38.98304575,114.34,114.23,10.5]
[1644192809063,38.98304575,114.34,114.24,22.72564864]
[1644192809262,38.98304575,114.34,114.25,0.03788704]
[1644192810063,24.9021,114.37,114.25,0.03788704]
[1644192810265,13.1268,114.36,114.25,0.03788704]
[1644192810463,17.06083917,114.41,114.25,10.53788704]
[1644192810664,74.508553,114.43,114.26,0.03788704]
[1644192810965,86.57255122,114.43,114.27,10.5]
[1644192811165,86.57255122,114.43,114.28,22.72564864]
[1644192811166,41.69370581,114.42,114.28,22.72564864]
[1644192811368,56.22935703,114.42,114.29,0.03788704]
[1644192811964,13.1228,114.4,114.29,0.03788704]
[1644192812167,47.5286803,114.39,114.29,0.03788704]
[1644192813567,42.14256962,114.37,114.29,0.03788704]
[1644192814668,55.26866962,114.37,114.29,0.03788704]
[1644192821877,13.1237,114.39,114.29,0.03788704]
[1644192822973,39.61249409,114.38,114.29,0.03788704]
[1644192823173,52.73739409,114.38,114.29,0.03788704]
[1644192827677,103.05033326,114.38,114.25,0.03788704]
[1644192827878,105.52198626,114.38,114.25,0.03788704]
[1644192828277,116.02198626,114.38,114.25,0.03788704]
[1644192828580,130.55763748,114.38,114.24,46.17184978]
[1644192828883,130.55763748,114.38,114.25,0.03788704]
[1644192830083,100.86349409,114.38,114.25,10.53788704]
[1644192830285,100.86349409,114.38,114.26,12.97134265]
[1644192830487,100.86349409,114.38,114.27,0.03788704]
[1644192832787,103.05033326,114.38,114.27,0.03788704]
[1644192832988,4.63952354,114.37,114.27,0.03788704]
[1644192833192,53.39705648,114.36,114.27,0.03788704]
[1644192833991,40.27015648,114.36,114.27,0.03788704]
[1644192834893,53.39665648,114.36,114.27,0.03788704]
[1644192835895,10.5,114.35,114.27,0.03788704]
[1644192836095,10.5,114.35,114.22,102.0014]
[1644192836096,13.1302,114.33,114.24,0.03788704]
[1644192836294,10.5,114.32,114.22,0.03788704]
[1644192836494,12.68683917,114.32,114.19,0.03788704]
[1644192836896,37.62977917,114.31,114.19,34.97357281]
[1644192837103,37.62977917,114.31,114.2,0.03788704]
[1644192837298,13.134,114.3,114.2,0.03788704]
[1644192837498,37.56223241,114.29,114.2,0.03788704]
[1644192838400,10.5,114.32,114.2,0.03788704]
[1644192838597,13.1347,114.29,114.2,0.03788704]
[1644192839404,47.95043184,114.31,114.2,0.03788704]